[Event "Live Chess"]
[Site "Chess.com"]
[Date "2023.05.21"]
[Round "-"]
[White "JohanKjeldahl"]
[Black "WelshTiger"]
[Result "0-1"]
[WhiteElo "1864"]
[BlackElo "2301"]
[TimeControl "300"]
[EndTime "5:43:55 PDT"]
[Termination "WelshTiger won by resignation"]

1. c4 {[%clk 0:04:57.5]} 1... e6 {[%clk 0:04:57.7]} 2. Nc3 {[%clk 0:04:56.3]}
2... d5 {[%clk 0:04:57]} 3. d4 {[%clk 0:04:54.5]} 3... c5 {[%clk 0:04:55.5]} 4.
Nf3 {[%clk 0:04:51.9]} 4... Nc6 {[%clk 0:04:54.4]} 5. g3 {[%clk 0:04:49.2]} 5...
Nf6 {[%clk 0:04:51.8]} 6. Bg2 {[%clk 0:04:47.4]} 6... Be7 {[%clk 0:04:50.4]} 7.
cxd5 {[%clk 0:04:46.2]} 7... exd5 {[%clk 0:04:49.4]} 8. O-O {[%clk 0:04:44.3]}
8... O-O {[%clk 0:04:48.3]} 9. dxc5 {[%clk 0:04:41.3]} 9... d4 {[%clk
0:04:48.2]} 10. Nb1 {[%clk 0:04:32]} 10... Bf5 {[%clk 0:04:46.3]} 11. Nbd2
{[%clk 0:04:29.6]} 11... Bxc5 {[%clk 0:04:43.3]} 12. Nb3 {[%clk 0:04:28.2]}
12... Bb6 {[%clk 0:04:42.3]} 13. Bg5 {[%clk 0:04:26.8]} 13... h6 {[%clk
0:04:38.7]} 14. Bxf6 {[%clk 0:04:21.7]} 14... Qxf6 {[%clk 0:04:37.4]} 15. Rc1
{[%clk 0:04:20.5]} 15... Rad8 {[%clk 0:04:33.2]} 16. Nh4 {[%clk 0:04:16]} 16...
Bg4 {[%clk 0:04:23.1]} 17. Nf3 {[%clk 0:04:10.8]} 17... Rfe8 {[%clk 0:04:16.6]}
18. Qd3 {[%clk 0:04:05.2]} 18... Bxf3 {[%clk 0:03:49.9]} 19. Bxf3 {[%clk
0:04:03]} 19... Ne5 {[%clk 0:03:48.7]} 20. Qe4 {[%clk 0:03:51.6]} 20... d3
{[%clk 0:03:39.3]} 21. Qxb7 {[%clk 0:03:42.9]} 21... Rd7 {[%clk 0:03:35.4]} 22.
Qe4 {[%clk 0:03:34.3]} 22... Nxf3+ {[%clk 0:03:23.3]} 23. Qxf3 {[%clk
0:03:28.5]} 23... Rxe2 {[%clk 0:03:22.3]} 24. Rfd1 {[%clk 0:03:15.9]} 24... Qxf3
{[%clk 0:03:20.4]} 0-1

[Event "Live Chess"]
[Site "Chess.com"]
[Date "2023.05.21"]
[Round "-"]
[White "The_Straightforward_Rook"]
[Black "garyjc"]
[Result "1-0"]
[WhiteElo "1986"]
[BlackElo "1040"]
[TimeControl "300"]
[EndTime "5:43:58 PDT"]
[Termination "The_Straightforward_Rook won by resignation"]

1. e4 {[%clk 0:04:58.4]} 1... c5 {[%clk 0:04:59.1]} 2. Nf3 {[%clk 0:04:57.2]}
2... a6 {[%clk 0:04:53.2]} 3. c3 {[%clk 0:04:52.4]} 3... Nc6 {[%clk 0:04:37.1]}
4. d4 {[%clk 0:04:50.7]} 4... cxd4 {[%clk 0:04:35.4]} 5. cxd4 {[%clk 0:04:49.5]}
5... d6 {[%clk 0:04:19.9]} 6. Nc3 {[%clk 0:04:47.6]} 6... e5 {[%clk 0:04:15.1]}
7. d5 {[%clk 0:04:46.3]} 7... Na7 {[%clk 0:03:59.3]} 8. Be2 {[%clk 0:04:45.2]}
8... Nf6 {[%clk 0:03:53.6]} 9. O-O {[%clk 0:04:43.4]} 9... Be7 {[%clk
0:03:45.2]} 10. h3 {[%clk 0:04:41.6]} 10... O-O {[%clk 0:03:44.2]} 11. Be3
{[%clk 0:04:39.9]} 11... Bd7 {[%clk 0:03:35.2]} 12. a4 {[%clk 0:04:38.6]} 12...
Qa5 {[%clk 0:03:11.8]} 13. Qd2 {[%clk 0:04:29.3]} 13... Qd8 {[%clk 0:02:49.7]}
14. b4 {[%clk 0:04:27.6]} 14... Rc8 {[%clk 0:02:26.6]} 15. Bxa7 {[%clk
0:04:25.7]} 1-0

[Event "Live Chess"]
[Site "Chess.com"]
[Date "2023.05.21"]
[Round "-"]
[White "sanjesh_ananda"]
[Black "Biranidun"]
[Result "0-1"]
[WhiteElo "1196"]
[BlackElo "2524"]
[TimeControl "300"]
[EndTime "5:44:12 PDT"]
[Termination "Biranidun won by resignation"]

1. e4 {[%clk 0:04:57.6]} 1... c5 {[%clk 0:04:58.6]} 2. Nf3 {[%clk 0:04:56.1]}
2... d6 {[%clk 0:04:58]} 3. Bc4 {[%clk 0:04:54.2]} 3... Nf6 {[%clk 0:04:57.3]}
4. Nc3 {[%clk 0:04:52.3]} 4... g6 {[%clk 0:04:56.6]} 5. O-O {[%clk 0:04:50.6]}
5... Bg7 {[%clk 0:04:56.2]} 6. d4 {[%clk 0:04:46.7]} 6... cxd4 {[%clk
0:04:55.3]} 7. Nxd4 {[%clk 0:04:45]} 7... O-O {[%clk 0:04:55.2]} 8. f4 {[%clk
0:04:33]} 8... Nc6 {[%clk 0:04:53.9]} 9. Nf3 {[%clk 0:04:23.7]} 9... Bg4 {[%clk
0:04:50.3]} 10. h3 {[%clk 0:04:17.8]} 10... Bxf3 {[%clk 0:04:49.5]} 11. Qxf3
{[%clk 0:04:16.5]} 11... Rc8 {[%clk 0:04:49.4]} 12. e5 {[%clk 0:04:10.5]} 12...
dxe5 {[%clk 0:04:48.2]} 13. Bb3 {[%clk 0:04:02.9]} 13... exf4 {[%clk 0:04:34.6]}
14. Bxf4 {[%clk 0:04:00.1]} 14... Qb6+ {[%clk 0:04:23.1]} 15. Kh1 {[%clk
0:03:44.7]} 15... Nd4 {[%clk 0:04:21.4]} 16. Qd1 {[%clk 0:03:29.6]} 16... Rcd8
{[%clk 0:04:14.8]} 17. Qe1 {[%clk 0:03:25.5]} 17... Nh5 {[%clk 0:04:13.3]} 18.
Be3 {[%clk 0:03:22.9]} 18... Qc7 {[%clk 0:04:06.6]} 19. Bxd4 {[%clk 0:02:55.5]}
19... Ng3+ {[%clk 0:04:05.2]} 20. Kg1 {[%clk 0:02:52]} 20... Bxd4+ {[%clk
0:04:03.9]} 21. Rf2 {[%clk 0:02:40.6]} 21... Qb6 {[%clk 0:04:02.7]} 22. Ne2
{[%clk 0:02:27.3]} 22... Bxf2+ {[%clk 0:04:00.5]} 23. Qxf2 {[%clk 0:02:24.8]}
23... Nxe2+ {[%clk 0:04:00.4]} 24. Kf1 {[%clk 0:02:21.3]} 24... Qxf2+ {[%clk
0:04:00.3]} 25. Kxf2 {[%clk 0:02:20]} 25... Nd4 {[%clk 0:04:00.2]} 0-1

[Event "Live Chess"]
[Site "Chess.com"]
[Date "2023.05.21"]
[Round "-"]
[White "Anirudh_23"]
[Black "GwaryTek"]
[Result "1/2-1/2"]
[WhiteElo "1890"]
[BlackElo "2054"]
[TimeControl "300"]
[EndTime "5:44:15 PDT"]
[Termination "Game drawn by agreement"]

1. Nf3 {[%clk 0:04:58.9]} 1... d5 {[%clk 0:04:58.1]} 2. g3 {[%clk 0:04:57.2]}
2... c5 {[%clk 0:04:58]} 3. Bg2 {[%clk 0:04:56.1]} 3... Nc6 {[%clk 0:04:57.5]}
4. d4 {[%clk 0:04:55.5]} 4... Nf6 {[%clk 0:04:56.2]} 5. O-O {[%clk 0:04:53.3]}
5... e6 {[%clk 0:04:54.2]} 6. c4 {[%clk 0:04:52.7]} 6... cxd4 {[%clk 0:04:53.3]}
7. Nxd4 {[%clk 0:04:52.6]} 7... Bd7 {[%clk 0:04:52.2]} 8. Nc3 {[%clk 0:04:50.7]}
8... Be7 {[%clk 0:04:50.8]} 9. cxd5 {[%clk 0:04:45.4]} 9... exd5 {[%clk
0:04:46.8]} 10. Nxd5 {[%clk 0:04:37.7]} 10... Nxd5 {[%clk 0:04:40.3]} 11. Bxd5
{[%clk 0:04:37.6]} 11... O-O {[%clk 0:04:38.9]} 12. Nxc6 {[%clk 0:04:32.9]}
12... bxc6 {[%clk 0:04:36.6]} 13. Bg2 {[%clk 0:04:31.3]} 13... Rb8 {[%clk
0:04:35.2]} 14. Qa4 {[%clk 0:04:24.1]} 14... Bc5 {[%clk 0:04:30.2]} 15. Rd1
{[%clk 0:04:11.4]} 15... Qf6 {[%clk 0:04:16.1]} 16. Bf4 {[%clk 0:03:47.3]} 16...
Rb7 {[%clk 0:03:48.6]} 17. Qc2 {[%clk 0:03:26.6]} 17... Bb6 {[%clk 0:03:17.7]}
18. Rd6 {[%clk 0:03:15.8]} 18... Qe7 {[%clk 0:03:11.2]} 19. Rad1 {[%clk
0:03:11.2]} 19... Be8 {[%clk 0:02:51.9]} 20. Bxc6 {[%clk 0:03:00.9]} 20... Rc7
{[%clk 0:02:38.1]} 21. Qe4 {[%clk 0:02:44.8]} 21... Bxc6 {[%clk 0:02:16.2]} 22.
Qxe7 {[%clk 0:02:37.9]} 22... Rxe7 {[%clk 0:02:14.6]} 23. Rxc6 {[%clk
0:02:36.7]} 23... Rxe2 {[%clk 0:02:14.2]} 24. Be3 {[%clk 0:02:09.4]} 24... Rxb2
{[%clk 0:01:57.7]} 25. Bxb6 {[%clk 0:02:07.1]} 25... axb6 {[%clk 0:01:57.5]} 26.
Rdd6 {[%clk 0:01:57.4]} 26... h6 {[%clk 0:01:49.9]} 27. a4 {[%clk 0:01:48.5]}
27... Ra8 {[%clk 0:01:44.8]} 28. Rxb6 {[%clk 0:01:45.1]} 28... Rxb6 {[%clk
0:01:40.7]} 29. Rxb6 {[%clk 0:01:45]} 29... Rxa4 {[%clk 0:01:38.8]} 30. Kg2
{[%clk 0:01:43.1]} 1/2-1/2

[Event "Live Chess"]
[Site "Chess.com"]
[Date "2023.05.21"]
[Round "-"]
[White "whatnot126"]
[Black "Ferrarifan27"]
[Result "0-1"]
[WhiteElo "2050"]
[BlackElo "2066"]
[TimeControl "300"]
[EndTime "5:44:33 PDT"]
[Termination "Ferrarifan27 won by resignation"]

1. e4 {[%clk 0:04:58.5]} 1... e5 {[%clk 0:04:58.3]} 2. Nf3 {[%clk 0:04:57.5]}
2... Nc6 {[%clk 0:04:57.6]} 3. d4 {[%clk 0:04:56.8]} 3... exd4 {[%clk
0:04:56.4]} 4. Bc4 {[%clk 0:04:56.3]} 4... Bb4+ {[%clk 0:04:53.6]} 5. c3 {[%clk
0:04:55.2]} 5... dxc3 {[%clk 0:04:53.5]} 6. O-O {[%clk 0:04:54.8]} 6... d6
{[%clk 0:04:51.7]} 7. bxc3 {[%clk 0:04:26.5]} 7... Bc5 {[%clk 0:04:49.7]} 8. Qb3
{[%clk 0:04:19.3]} 8... Qd7 {[%clk 0:04:40.9]} 9. Bd3 {[%clk 0:03:54.4]} 9...
Nf6 {[%clk 0:04:34.6]} 10. Bg5 {[%clk 0:03:47.6]} 10... Ng4 {[%clk 0:04:24.9]}
11. Nbd2 {[%clk 0:03:28.6]} 11... O-O {[%clk 0:04:20.4]} 12. a4 {[%clk
0:03:23.4]} 12... h6 {[%clk 0:04:16.8]} 13. Bh4 {[%clk 0:03:12.6]} 13... a5
{[%clk 0:04:11.1]} 14. Rad1 {[%clk 0:03:07.3]} 14... Qe6 {[%clk 0:03:58.2]} 15.
Bc4 {[%clk 0:03:03.9]} 15... Qg6 {[%clk 0:03:56.6]} 16. h3 {[%clk 0:02:54.1]}
16... Nge5 {[%clk 0:03:54.5]} 17. Nxe5 {[%clk 0:02:48.9]} 17... Nxe5 {[%clk
0:03:54.4]} 18. Be2 {[%clk 0:02:29]} 18... Bxh3 {[%clk 0:03:51.1]} 19. Bg3
{[%clk 0:02:25.9]} 19... Qxg3 {[%clk 0:03:44.4]} 0-1

[Event "Live Chess"]
[Site "Chess.com"]
[Date "2023.05.21"]
[Round "-"]
[White "RockTroll"]
[Black "Nazar_777"]
[Result "1-0"]
[WhiteElo "2225"]
[BlackElo "1557"]
[TimeControl "300"]
[EndTime "5:44:57 PDT"]
[Termination "RockTroll won by checkmate"]

1. g3 {[%clk 0:04:58.3]} 1... e6 {[%clk 0:04:50.2]} 2. Bg2 {[%clk 0:04:58.2]}
2... a6 {[%clk 0:04:49.1]} 3. Nf3 {[%clk 0:04:58.1]} 3... h5 {[%clk 0:04:48.3]}
4. O-O {[%clk 0:04:58]} 4... c5 {[%clk 0:04:47.7]} 5. c4 {[%clk 0:04:55.5]} 5...
Nf6 {[%clk 0:04:47]} 6. Nc3 {[%clk 0:04:53.9]} 6... Nc6 {[%clk 0:04:46]} 7. d4
{[%clk 0:04:52.7]} 7... cxd4 {[%clk 0:04:45]} 8. Nxd4 {[%clk 0:04:52.6]} 8...
Be7 {[%clk 0:04:43.4]} 9. b3 {[%clk 0:04:50.1]} 9... Qc7 {[%clk 0:04:42.5]} 10.
Bb2 {[%clk 0:04:48.8]} 10... Ng4 {[%clk 0:04:41.4]} 11. Rc1 {[%clk 0:04:46]}
11... Bf6 {[%clk 0:04:40.2]} 12. Nd5 {[%clk 0:04:43.4]} 12... Qb8 {[%clk
0:04:37.5]} 13. Nxf6+ {[%clk 0:04:41.1]} 13... gxf6 {[%clk 0:04:36.4]} 14. Nxc6
{[%clk 0:04:32.6]} 14... bxc6 {[%clk 0:04:35.1]} 15. h3 {[%clk 0:04:31.2]} 15...
Ne5 {[%clk 0:04:29.8]} 16. f4 {[%clk 0:04:30.3]} 16... Ng6 {[%clk 0:04:22.2]}
17. Bxf6 {[%clk 0:04:29.6]} 17... Rg8 {[%clk 0:04:21.2]} 18. Kh2 {[%clk
0:04:25.8]} 18... Ne7 {[%clk 0:04:17.9]} 19. Be5 {[%clk 0:04:22.4]} 19... Qb7
{[%clk 0:04:10.5]} 20. e3 {[%clk 0:04:20.7]} 20... Qb6 {[%clk 0:04:08.4]} 21.
Qxh5 {[%clk 0:04:18.8]} 21... Qxe3 {[%clk 0:04:04.9]} 22. Qf3 {[%clk 0:04:12.8]}
22... Qxf3 {[%clk 0:04:00.6]} 23. Bxf3 {[%clk 0:04:12.1]} 23... Nf5 {[%clk
0:03:59.7]} 24. g4 {[%clk 0:04:08.2]} 24... Nh4 {[%clk 0:03:53.7]} 25. Kg3
{[%clk 0:04:05.1]} 25... Ng6 {[%clk 0:03:47.1]} 26. Bd6 {[%clk 0:03:58]} 26...
Bb7 {[%clk 0:03:43.8]} 27. h4 {[%clk 0:03:56.9]} 27... Ne7 {[%clk 0:03:41.8]}
28. h5 {[%clk 0:03:53.5]} 28... Nf5+ {[%clk 0:03:40.4]} 29. Kh3 {[%clk 0:03:50]}
29... Nxd6 {[%clk 0:03:38.9]} 30. h6 {[%clk 0:03:48.9]} 30... f5 {[%clk
0:03:34.5]} 31. g5 {[%clk 0:03:48]} 31... Rb8 {[%clk 0:03:25.3]} 32. Bh5+ {[%clk
0:03:44.3]} 32... Ke7 {[%clk 0:03:21.7]} 33. g6 {[%clk 0:03:43.4]} 33... Ne4
{[%clk 0:03:15.5]} 34. h7 {[%clk 0:03:39.3]} 34... Rh8 {[%clk 0:03:11.4]} 35.
Bf3 {[%clk 0:03:37.7]} 35... Nf6 {[%clk 0:03:06.2]} 36. Rg1 {[%clk 0:03:25.1]}
36... c5 {[%clk 0:02:54.4]} 37. Bxb7 {[%clk 0:03:22.5]} 37... Rxb7 {[%clk
0:02:52.9]} 38. Rg5 {[%clk 0:03:19.7]} 38... Rbb8 {[%clk 0:02:42.2]} 39. Kg3
{[%clk 0:03:19]} 39... Ne4+ {[%clk 0:02:39.8]} 40. Kf3 {[%clk 0:03:18.2]} 40...
Nxg5+ {[%clk 0:02:38.4]} 41. fxg5 {[%clk 0:03:18.1]} 41... e5 {[%clk 0:02:32.5]}
42. Rh1 {[%clk 0:03:13.9]} 42... d6 {[%clk 0:02:13.8]} 43. g7 {[%clk 0:03:10.9]}
43... Kf7 {[%clk 0:02:05.3]} 44. gxh8=Q {[%clk 0:03:08.6]} 44... Rxh8 {[%clk
0:02:03.8]} 45. Rh6 {[%clk 0:03:07.8]} 45... Ke7 {[%clk 0:01:45.7]} 46. Kg3
{[%clk 0:03:02.7]} 46... f4+ {[%clk 0:01:41.9]} 47. Kg4 {[%clk 0:03:01.8]} 47...
a5 {[%clk 0:01:36]} 48. Kf5 {[%clk 0:02:59.9]} 48... Rf8+ {[%clk 0:01:32.5]} 49.
Kg6 {[%clk 0:02:58.8]} 49... f3 {[%clk 0:01:13.8]} 50. h8=Q {[%clk 0:02:53.6]}
50... Rxh8 {[%clk 0:01:09.2]} 51. Rxh8 {[%clk 0:02:53.5]} 51... e4 {[%clk
0:01:06.8]} 52. Rh7+ {[%clk 0:02:46.6]} 52... Ke6 {[%clk 0:01:02.7]} 53. Rf7
{[%clk 0:02:45.6]} 53... Ke5 {[%clk 0:00:59.2]} 54. Kh7 {[%clk 0:02:44]} 54...
Kd4 {[%clk 0:00:54.2]} 55. g6 {[%clk 0:02:43.3]} 55... Ke3 {[%clk 0:00:51.3]}
56. g7 {[%clk 0:02:42.3]} 56... f2 {[%clk 0:00:50.4]} 57. g8=Q {[%clk
0:02:41.4]} 57... Ke2 {[%clk 0:00:49.5]} 58. Qg2 {[%clk 0:02:39.5]} 58... e3
{[%clk 0:00:48.7]} 59. Rf3 {[%clk 0:02:36.4]} 59... d5 {[%clk 0:00:47]} 60. cxd5
{[%clk 0:02:34.9]} 60... c4 {[%clk 0:00:45.7]} 61. bxc4 {[%clk 0:02:33]} 61...
a4 {[%clk 0:00:44.7]} 62. Rxe3+ {[%clk 0:02:26.3]} 62... Kxe3 {[%clk 0:00:43.2]}
63. Qf1 {[%clk 0:02:25.7]} 63... a3 {[%clk 0:00:41.2]} 64. d6 {[%clk 0:02:24.9]}
64... Kd2 {[%clk 0:00:38.8]} 65. d7 {[%clk 0:02:24.5]} 65... Kc3 {[%clk
0:00:12.9]} 66. d8=Q {[%clk 0:02:19.5]} 66... Kb2 {[%clk 0:00:11.1]} 67. Qd4+
{[%clk 0:02:17.5]} 67... Kxa2 {[%clk 0:00:09.7]} 68. Qfxf2+ {[%clk 0:02:16]}
68... Kb1 {[%clk 0:00:08.2]} 69. Qd1# {[%clk 0:02:15.7]} 1-0

[Event "Live Chess"]
[Site "Chess.com"]
[Date "2023.05.21"]
[Round "-"]
[White "LiamClery2020"]
[Black "JanMur7"]
[Result "0-1"]
[WhiteElo "1981"]
[BlackElo "1961"]
[TimeControl "300"]
[EndTime "5:44:58 PDT"]
[Termination "JanMur7 won by resignation"]

1. e4 {[%clk 0:04:57.8]} 1... e5 {[%clk 0:04:58.3]} 2. Nc3 {[%clk 0:04:56.8]}
2... Nf6 {[%clk 0:04:57.1]} 3. f4 {[%clk 0:04:54.8]} 3... d5 {[%clk 0:04:56.3]}
4. fxe5 {[%clk 0:04:50.8]} 4... Nxe4 {[%clk 0:04:55.3]} 5. Qf3 {[%clk
0:04:50.4]} 5... Nxc3 {[%clk 0:04:54.7]} 6. bxc3 {[%clk 0:04:50.3]} 6... c5
{[%clk 0:04:52.9]} 7. Bb5+ {[%clk 0:04:49.5]} 7... Nc6 {[%clk 0:04:52]} 8. Qg3
{[%clk 0:04:48.8]} 8... Be6 {[%clk 0:04:50.4]} 9. Nf3 {[%clk 0:04:48]} 9... h5
{[%clk 0:04:48.9]} 10. O-O {[%clk 0:04:46.3]} 10... h4 {[%clk 0:04:48.1]} 11.
Qf2 {[%clk 0:04:42.7]} 11... h3 {[%clk 0:04:47.1]} 12. g3 {[%clk 0:04:41.4]}
12... Be7 {[%clk 0:04:39.3]} 13. d4 {[%clk 0:04:40.2]} 13... cxd4 {[%clk
0:04:19.1]} 14. Nxd4 {[%clk 0:04:38.9]} 14... Qd7 {[%clk 0:04:07.3]} 15. Be3
{[%clk 0:04:24]} 15... a6 {[%clk 0:04:01.4]} 16. Bxc6 {[%clk 0:04:21.4]} 16...
bxc6 {[%clk 0:03:59.9]} 17. Rab1 {[%clk 0:04:20.6]} 17... O-O {[%clk 0:03:53.9]}
18. Nb3 {[%clk 0:04:04.7]} 18... Rab8 {[%clk 0:03:28.9]} 19. Bc5 {[%clk
0:03:59.9]} 19... Rfc8 {[%clk 0:03:16]} 20. Bxe7 {[%clk 0:03:55.5]} 20... Qxe7
{[%clk 0:03:15.9]} 21. Nd4 {[%clk 0:03:49.3]} 21... Rxb1 {[%clk 0:03:08.9]} 22.
Rxb1 {[%clk 0:03:49.2]} 22... c5 {[%clk 0:03:08]} 23. Nb3 {[%clk 0:03:45.6]}
23... Qc7 {[%clk 0:03:00.2]} 24. Qf4 {[%clk 0:03:43.2]} 24... Rb8 {[%clk
0:02:25.5]} 25. Rf1 {[%clk 0:03:31.6]} 25... Qc6 {[%clk 0:02:11]} 26. Qh4 {[%clk
0:03:14.4]} 26... d4 {[%clk 0:01:59.4]} 27. Rf2 {[%clk 0:03:04.8]} 27... c4
{[%clk 0:01:44.1]} 28. Nc1 {[%clk 0:02:59.9]} 28... dxc3 {[%clk 0:01:31.5]} 29.
g4 {[%clk 0:02:53.1]} 29... Qe4 {[%clk 0:01:20.7]} 30. Qxh3 {[%clk 0:02:49.1]}
30... Rb1 {[%clk 0:01:18]} 31. Rf1 {[%clk 0:02:48.2]} 31... Qd4+ {[%clk
0:01:06.9]} 32. Kh1 {[%clk 0:02:46.9]} 32... Bd5+ {[%clk 0:01:03.5]} 0-1

[Event "Live Chess"]
[Site "Chess.com"]
[Date "2023.05.21"]
[Round "-"]
[White "Brooms1989"]
[Black "Greenbecker"]
[Result "0-1"]
[WhiteElo "1164"]
[BlackElo "1679"]
[TimeControl "300"]
[EndTime "5:45:06 PDT"]
[Termination "Greenbecker won by resignation"]

1. e4 {[%clk 0:04:57.8]} 1... e6 {[%clk 0:04:58.9]} 2. d4 {[%clk 0:04:56.4]}
2... d5 {[%clk 0:04:58.4]} 3. Nc3 {[%clk 0:04:55.1]} 3... dxe4 {[%clk
0:04:57.3]} 4. Nxe4 {[%clk 0:04:54.2]} 4... Bd7 {[%clk 0:04:56.9]} 5. Nf3 {[%clk
0:04:53]} 5... Bc6 {[%clk 0:04:56.4]} 6. Nc3 {[%clk 0:04:49.3]} 6... Nf6 {[%clk
0:04:52.3]} 7. Bc4 {[%clk 0:04:45.4]} 7... Bb4 {[%clk 0:04:50.3]} 8. O-O {[%clk
0:04:43.3]} 8... O-O {[%clk 0:04:48]} 9. a3 {[%clk 0:04:41.2]} 9... Be7 {[%clk
0:04:44.5]} 10. Bg5 {[%clk 0:04:35.8]} 10... Bxf3 {[%clk 0:04:43]} 11. Qxf3
{[%clk 0:04:33.4]} 11... c6 {[%clk 0:04:42.2]} 12. Ne2 {[%clk 0:04:29.8]} 12...
Nbd7 {[%clk 0:04:40.3]} 13. Qg3 {[%clk 0:04:22.6]} 13... Nd5 {[%clk 0:04:37.5]}
14. Bh6 {[%clk 0:04:18.3]} 14... Bf6 {[%clk 0:04:36.5]} 15. Bxd5 {[%clk
0:04:12.7]} 15... exd5 {[%clk 0:04:34.6]} 16. f4 {[%clk 0:04:10.8]} 16... Re8
{[%clk 0:04:25.8]} 17. Rf2 {[%clk 0:04:02.8]} 17... Qe7 {[%clk 0:04:23.2]} 18.
Re1 {[%clk 0:03:59.6]} 18... Qe3 {[%clk 0:04:21.7]} 19. Qxe3 {[%clk 0:03:51.4]}
19... Rxe3 {[%clk 0:04:20.5]} 20. Bg5 {[%clk 0:03:44.8]} 20... Bxd4 {[%clk
0:04:13]} 21. f5 {[%clk 0:03:36.4]} 21... Ree8 {[%clk 0:04:09.4]} 22. Rf1 {[%clk
0:03:28.9]} 0-1

[Event "Live Chess"]
[Site "Chess.com"]
[Date "2023.05.21"]
[Round "-"]
[White "Hacker_2009"]
[Black "hturner40"]
[Result "1-0"]
[WhiteElo "1942"]
[BlackElo "1785"]
[TimeControl "300"]
[EndTime "5:45:12 PDT"]
[Termination "Hacker_2009 won on time"]

1. d4 {[%clk 0:04:55.6]} 1... Nf6 {[%clk 0:04:58.1]} 2. Nf3 {[%clk 0:04:54.7]}
2... g6 {[%clk 0:04:55.8]} 3. c4 {[%clk 0:04:51.9]} 3... Bg7 {[%clk 0:04:54.7]}
4. Nc3 {[%clk 0:04:50.4]} 4... d5 {[%clk 0:04:53.7]} 5. e3 {[%clk 0:04:49.4]}
5... c5 {[%clk 0:04:50.6]} 6. cxd5 {[%clk 0:04:47.7]} 6... Nxd5 {[%clk
0:04:46.2]} 7. Be2 {[%clk 0:04:46.4]} 7... Nc6 {[%clk 0:04:42.2]} 8. O-O {[%clk
0:04:43.8]} 8... O-O {[%clk 0:04:37.9]} 9. Qb3 {[%clk 0:04:35.8]} 9... Nxc3
{[%clk 0:04:28.3]} 10. bxc3 {[%clk 0:04:07.1]} 10... Be6 {[%clk 0:04:08.8]} 11.
Qd1 {[%clk 0:04:03.5]} 11... cxd4 {[%clk 0:03:56]} 12. cxd4 {[%clk 0:04:01.9]}
12... Rc8 {[%clk 0:03:41.8]} 13. Bb2 {[%clk 0:03:59.7]} 13... Nb4 {[%clk
0:03:33.3]} 14. a3 {[%clk 0:03:51.8]} 14... Rc2 {[%clk 0:03:08.3]} 15. Rb1
{[%clk 0:03:33.9]} 15... Bb3 {[%clk 0:03:03.3]} 16. axb4 {[%clk 0:03:25]} 16...
Rxb2 {[%clk 0:03:00.9]} 17. Qd3 {[%clk 0:03:24.6]} 17... Bc2 {[%clk 0:02:56.2]}
18. Qc3 {[%clk 0:03:20.9]} 18... Rxb1 {[%clk 0:02:50.4]} 19. Qxc2 {[%clk
0:03:18.4]} 19... Rxf1+ {[%clk 0:02:47.4]} 20. Bxf1 {[%clk 0:03:17.3]} 20... Qb6
{[%clk 0:02:33.4]} 21. Qc5 {[%clk 0:03:15.2]} 21... Qxc5 {[%clk 0:02:12.1]} 22.
bxc5 {[%clk 0:03:08.9]} 22... Rc8 {[%clk 0:02:01.4]} 23. Nd2 {[%clk 0:03:03.5]}
23... e5 {[%clk 0:01:54.6]} 24. Nb3 {[%clk 0:02:57.9]} 24... exd4 {[%clk
0:01:49.8]} 25. exd4 {[%clk 0:02:55.1]} 25... a5 {[%clk 0:01:43.5]} 26. Nxa5
{[%clk 0:02:52.8]} 26... Bxd4 {[%clk 0:01:40.6]} 27. Nxb7 {[%clk 0:02:51.4]}
27... Bxc5 {[%clk 0:01:38.9]} 28. Nxc5 {[%clk 0:02:49.9]} 28... Rxc5 {[%clk
0:01:37.1]} 29. g3 {[%clk 0:02:49.5]} 29... Rc2 {[%clk 0:01:32.9]} 30. Kg2
{[%clk 0:02:47.5]} 30... g5 {[%clk 0:01:20.4]} 31. h3 {[%clk 0:01:58.3]} 31...
h5 {[%clk 0:01:11.1]} 32. h4 {[%clk 0:01:52.9]} 32... gxh4 {[%clk 0:01:05.5]}
33. gxh4 {[%clk 0:01:51.8]} 33... Kg7 {[%clk 0:00:50.7]} 34. Kg3 {[%clk
0:01:48.6]} 34... Kh6 {[%clk 0:00:43.3]} 35. f3 {[%clk 0:01:45.3]} 35... Rd2
{[%clk 0:00:30.1]} 36. Bc4 {[%clk 0:01:42.3]} 36... Kg6 {[%clk 0:00:23.8]} 37.
Bb3 {[%clk 0:01:37.7]} 37... f6 {[%clk 0:00:19.3]} 38. Ba4 {[%clk 0:01:36.3]}
38... Ra2 {[%clk 0:00:12.7]} 39. Be8+ {[%clk 0:01:35]} 39... Kh6 {[%clk
0:00:11.4]} 40. Bc6 {[%clk 0:01:34.6]} 40... Ra1 {[%clk 0:00:08.5]} 41. Be4
{[%clk 0:01:33]} 41... Rg1+ {[%clk 0:00:06.7]} 42. Kf4 {[%clk 0:01:21.1]} 42...
Rg8 {[%clk 0:00:04.1]} 43. Bf5 {[%clk 0:01:18.9]} 43... Kg7 {[%clk 0:00:02.4]}
44. Kg3 {[%clk 0:01:17.7]} 44... Kf7+ {[%clk 0:00:00.1]} 45. Bg4 {[%clk
0:01:16.3]} 1-0